[Event "47th GER-ch Blitz 2020"]
[Site "Magdeburg"]
[Date "2020.08.15"]
[Round "12.5"]
[White "Krause, Benedict"]
[Black "Svane, Frederik"]
[Result "1-0"]
[ECO "B37"]
[WhiteElo "2425"]
[BlackElo "2421"]
[Annotator "ChessBase"]
[PlyCount "81"]
[EventDate "2020.07.28"]
[EventType "tourn"]
[EventCountry "GER"]
[SourceTitle "playchess.com"]
[Source "ChessBase"]
[SourceQuality "1"]
[TimeControl "180+2"]

1. e4 {[%emt 0:00:00]} c5 {[%emt 0:00:00]} 2. Nf3 g6 3. d4 {[%emt 0:00:05]} cxd4 {[%emt 0:00:00]} 4. Nxd4 {[%emt 0:00:01]} Bg7 {[%emt 0:00:01]} 5. c4 {[%emt 0:00:00]} Nc6 {[%emt 0:00:01]} 6. Nc2 {[%emt 0:00:01]} Nf6 {[%emt 0:00:01]} 7. Nc3 {[%emt 0:00:01]} O-O {[%emt 0:00:02]} 8. Be2 {[%emt 0:00:01]} b6 {[%emt 0:00:02]} 9. O-O {[%emt 0:00:03]} Bb7 {[%emt 0:00:00]} 10. Be3 {[%emt 0:00:01]} Rc8 {[%emt 0:00:02]} 11. f3 {[%emt 0:00:17]} Qc7 {[%emt 0:00:07]} 12. Qd2 {[%emt 0:00:06]} d6 {[%emt 0:00:04]} 13. Rac1 {[%emt 0:00:03]} Qb8 {[%emt 0:00:03]} 14. b3 {[%emt 0:00:02]} Rfd8 {[%emt 0:00:08]} 15. Rfd1 {[%emt 0:00:02]} Ne5 {[%emt 0:00:02]} 16. Nb4 {[%emt 0:00:17]} e6 {[%emt 0:00:06]} 17. Nd3 {[%emt 0:00:34]} Nxd3 {[%emt 0:00:18]} 18. Bxd3 {[%emt 0:00:04]} d5 {[%emt 0:00:13]} 19. cxd5 {[%emt 0:00:21]} exd5 {[%emt 0:00:02]} 20. Bf4 {[%emt 0:00:01]} Qa8 {[%emt 0:00:04]} 21. e5 {[%emt 0:00:12]} Nd7 {[%emt 0:00:08]} 22. Re1 {[%emt 0:00:06]} Nc5 {[%emt 0:00:02]} 23. Nb5 {[%emt 0:00:19]} Ne6 {[%emt 0:00:15]} 24. Bg3 {[%emt 0:00:05]} Rxc1 {[%emt 0:00:13]} 25. Rxc1 {[%emt 0:00:02]} Rc8 {[%emt 0:00:14]} 26. Nd6 {[%emt 0:00:03]} Rc5 {[%emt 0:00:07]} 27. b4 {[%emt 0:00:05]} Rxc1+ 28. Qxc1 {[%emt 0:00:00]} Bc6 {[%emt 0:00:25]} 29. f4 {[%emt 0:00:01]} Bh6 {[%emt 0:00:06]} 30. Qf1 {[%emt 0:00:01]} d4 {[%emt 0:00:08]} 31. h4 {[%emt 0:00:10]} Bd5 {[%emt 0:00:14]} 32. f5 {[%emt 0:00:01]} Be3+ {[%emt 0:00:04]} 33. Kh2 {[%emt 0:00:01]} Ng7 {[%emt 0:00:03]} 34. e6 {[%emt 0:00:22]} Qd8 {[%emt 0:00:46]} 35. fxg6 {[%emt 0:00:10]} Bxe6 {[%emt 0:00:01]} 36. gxh7+ {[%emt 0:00:06]} Kh8 {[%emt 0:00:01]} 37. Nxf7+ {[%emt 0:00:01]} Bxf7 {[%emt 0:00:01]} 38. Qxf7 {[%emt 0:00:01]} Bh6 {[%emt 0:00:04]} 39. Qg6 {[%emt 0:00:04]} Bf4 {[%emt 0:00:04]} 40. Kh1 {[%emt 0:00:20]} Qc7 {[%emt 0:00:05]} 41. Qe4 {[%emt 0:00:09]} 1-0

[Event "47th GER-ch Blitz 2020"]
[Site "Magdeburg"]
[Date "2020.08.15"]
[Round "12.6"]
[White "Muranyi, Karl-Jasmin"]
[Black "Reichmann, Hendrik"]
[Result "1-0"]
[ECO "A40"]
[WhiteElo "2331"]
[BlackElo "2348"]
[Annotator "ChessBase"]
[PlyCount "121"]
[EventDate "2020.07.28"]
[EventType "tourn"]
[EventCountry "GER"]
[SourceTitle "playchess.com"]
[Source "ChessBase"]
[SourceQuality "1"]
[TimeControl "180+2"]

1. d4 {[%emt 0:00:00]} g6 {[%emt 0:00:00]} 2. c3 {[%emt 0:00:00]} Bg7 {[%emt 0:00:00]} 3. Nf3 {[%emt 0:00:01]} d6 {[%emt 0:00:01]} 4. Bf4 {[%emt 0:00:01]} Nd7 {[%emt 0:00:01]} 5. h3 {[%emt 0:00:03]} e5 {[%emt 0:00:01]} 6. Bh2 {[%emt 0:00:03]} Qe7 {[%emt 0:00:03]} 7. e3 {[%emt 0:00:01]} Ngf6 {[%emt 0:00:02]} 8. Be2 {[%emt 0:00:01]} O-O {[%emt 0:00:02]} 9. O-O {[%emt 0:00:02]} b6 {[%emt 0:00:28]} 10. a4 {[%emt 0:00:01]} a6 {[%emt 0:00:02]} 11. Nbd2 {[%emt 0:00:06]} Bb7 {[%emt 0:00:01]} 12. Qb3 {[%emt 0:00:02]} Kh8 {[%emt 0:00:24]} 13. Qa3 {[%emt 0:00:08]} e4 {[%emt 0:00:08]} 14. Ne1 {[%emt 0:00:02]} Rfe8 {[%emt 0:00:09]} 15. Nc2 {[%emt 0:00:02]} Bf8 {[%emt 0:00:05]} 16. b4 {[%emt 0:00:05]} Qd8 {[%emt 0:00:03]} 17. Qb3 {[%emt 0:00:03]} Qe7 {[%emt 0:00:10]} 18. c4 {[%emt 0:00:04]} Rab8 {[%emt 0:00:12]} 19. a5 {[%emt 0:00:03]} Bc8 {[%emt 0:00:22]} 20. axb6 {[%emt 0:00:12]} Rxb6 {[%emt 0:00:09]} 21. Qa4 {[%emt 0:00:24]} c5 {[%emt 0:00:04]} 22. Rfb1 {[%emt 0:00:15]} cxd4 {[%emt 0:00:07]} 23. Nxd4 {[%emt 0:00:01]} Ne5 {[%emt 0:00:05]} 24. Qa5 {[%emt 0:00:14]} Qb7 {[%emt 0:00:05]} 25. c5 {[%emt 0:00:11]} dxc5 {[%emt 0:00:08]} 26. bxc5 {[%emt 0:00:01]} Rxb1+ {[%emt 0:00:03]} 27. Rxb1 {[%emt 0:00:01]} Qd5 {[%emt 0:00:04]} 28. Bxe5 {[%emt 0:00:15]} Qxe5 {[%emt 0:00:07]} 29. Bxa6 {[%emt 0:00:22]} Qxc5 {[%emt 0:00:07]} 30. Qxc5 {[%emt 0:00:05]} Bxc5 {[%emt 0:00:01]} 31. Bxc8 {[%emt 0:00:01]} Rxc8 {[%emt 0:00:01]} 32. Rc1 {[%emt 0:00:08]} Rc7 {[%emt 0:00:11]} 33. Nb5 {[%emt 0:00:04]} Rd7 {[%emt 0:00:02]} 34. Rxc5 {[%emt 0:00:07]} Rxd2 {[%emt 0:00:00]} 35. g4 {[%emt 0:00:07]} h6 {[%emt 0:00:04]} 36. Nd4 {[%emt 0:00:02]} Kg7 {[%emt 0:00:05]} 37. Kg2 {[%emt 0:00:02]} Ra2 {[%emt 0:00:05]} 38. Kg3 {[%emt 0:00:01]} Ra1 {[%emt 0:00:01]} 39. Rc7 {[%emt 0:00:06]} Ra6 {[%emt 0:00:03]} 40. Re7 {[%emt 0:00:06]} Kf8 {[%emt 0:00:05]} 41. Re5 {[%emt 0:00:02]} Ra1 {[%emt 0:00:02]} 42. Kg2 {[%emt 0:00:02]} Ra2 {[%emt 0:00:02]} 43. Nc6 {[%emt 0:00:08]} Rd2 {[%emt 0:00:03]} 44. Nb4 {[%emt 0:00:03]} Kg7 {[%emt 0:00:06]} 45. Kg3 {[%emt 0:00:01]} Rd1 {[%emt 0:00:01]} 46. Nc6 {[%emt 0:00:05]} Rg1+ {[%emt 0:00:05]} 47. Kh2 {[%emt 0:00:01]} Rf1 {[%emt 0:00:02]} 48. Kg2 {[%emt 0:00:01]} Rd1 {[%emt 0:00:01]} 49. Nd4 {[%emt 0:00:01]} Rd2 {[%emt 0:00:03]} 50. Re7 {[%emt 0:00:03]} Kf8 {[%emt 0:00:01]} 51. Re5 {[%emt 0:00:03]} Kg7 {[%emt 0:00:03]} 52. Kg3 {[%emt 0:00:00]} Rd1 {[%emt 0:00:00]} 53. Ne2 {[%emt 0:00:01]} Rd2 {[%emt 0:00:05]} 54. Nc3 {[%emt 0:00:02]} Rc2 {[%emt 0:00:14]} 55. Nxe4 {[%emt 0:00:02]} Nd7 {[%emt 0:00:02]} 56. Re7 {[%emt 0:00:04]} Nf8 {[%emt 0:00:01]} 57. Nd6 {[%emt 0:00:02]} Ne6 {[%emt 0:00:06]} 58. Rxf7+ {[%emt 0:00:02]} Kg8 {[%emt 0:00:01]} 59. Rf6 {[%emt 0:00:02]} Ng5 {[%emt 0:00:03]} 60. h4 {[%emt 0:00:05]} Kg7 {[%emt 0:00:05]} 61. hxg5 {[%emt 0:00:06]} 1-0

[Event "47th GER-ch Blitz 2020"]
[Site "Magdeburg"]
[Date "2020.08.15"]
[Round "12.11"]
[White "Holtel, Jasper"]
[Black "Dobrikov, Marco"]
[Result "1-0"]
[ECO "B21"]
[WhiteElo "2305"]
[BlackElo "2290"]
[Annotator "ChessBase"]
[PlyCount "58"]
[EventDate "2020.07.28"]
[EventType "tourn"]
[EventCountry "GER"]
[SourceTitle "playchess.com"]
[Source "ChessBase"]
[SourceQuality "1"]
[TimeControl "180+2"]

1. e4 {[%emt 0:00:00]} c5 {[%emt 0:00:00]} 2. d4 {[%emt 0:00:01]} cxd4 {[%emt 0:00:00]} 3. c3 {[%emt 0:00:01]} dxc3 {[%emt 0:00:00]} 4. Nxc3 {[%emt 0:00:02]} e6 {[%emt 0:00:04]} 5. Nf3 {[%emt 0:00:04]} a6 {[%emt 0:00:00]} 6. Bc4 {[%emt 0:00:02]} b5 {[%emt 0:00:01]} 7. Bb3 {[%emt 0:00:01]} Bb7 {[%emt 0:00:02]} 8. O-O {[%emt 0:00:02]} Nc6 {[%emt 0:00:03]} 9. Qe2 {[%emt 0:00:03]} Nge7 {[%emt 0:00:43]} 10. Bg5 {[%emt 0:00:02]} f6 {[%emt 0:00:03]} 11. Be3 {[%emt 0:00:09]} Ng6 {[%emt 0:00:02]} 12. Rad1 {[%emt 0:00:11]} Qc7 {[%emt 0:00:04]} 13. Nd5 {[%emt 0:00:22]} exd5 {[%emt 0:00:03]} 14. exd5 {[%emt 0:00:01]} Nce5 {[%emt 0:00:07]} 15. Nxe5 {[%emt 0:00:12]} Qxe5 {[%emt 0:00:32]} 16. f4 {[%emt 0:00:18]} Qe7 {[%emt 0:00:32]} 17. d6 {[%emt 0:00:21]} Qe4 {[%emt 0:00:10]} 18. Rd4 {[%emt 0:00:06]} Qf5 {[%emt 0:00:23]} 19. Bd2+ {[%emt 0:00:07]} Be7 {[%emt 0:00:10]} 20. dxe7 {[%emt 0:00:03]} Nh4 {[%emt 0:00:12]} 21. Rf2 {[%emt 0:00:44]} Rc8 {[%emt 0:00:03]} 22. g3 {[%emt 0:00:27]} Ng6 {[%emt 0:00:01]} 23. Bb4 {[%emt 0:00:11]} d5 {[%emt 0:00:23]} 24. Qd2 {[%emt 0:00:06]} Qd7 {[%emt 0:00:01]} 25. Re2 {[%emt 0:00:03]} h5 {[%emt 0:00:05]} 26. Bxd5 {[%emt 0:00:03]} Bxd5 {[%emt 0:00:01]} 27. Rxd5 {[%emt 0:00:01]} Rc1+ {[%emt 0:00:05]} 28. Qxc1 {[%emt 0:00:05]} Qxd5 {[%emt 0:00:00]} 29. Qd2 {[%emt 0:00:05]} Qxd2 1-0

[Event "47th GER-ch Blitz 2020"]
[Site "Magdeburg"]
[Date "2020.08.15"]
[Round "15.5"]
[White "Frischmann, Rick"]
[Black "Siebrecht, Sebastian"]
[Result "1-0"]
[ECO "B41"]
[WhiteElo "2347"]
[BlackElo "2429"]
[Annotator "RC"]
[PlyCount "53"]
[EventDate "2020.07.28"]
[EventType "tourn"]
[EventCountry "GER"]
[SourceTitle "playchess.com"]
[Source "ChessBase"]
[SourceQuality "1"]
[TimeControl "180+2"]

1. e4 {[%emt 0:00:00]} c5 {[%emt 0:00:00]} 2. Nf3 e6 3. d4 {[%emt 0:00:02]} cxd4 {[%emt 0:00:00]} 4. Nxd4 a6 5. c4 {[%emt 0:00:02]} Qc7 {[%emt 0:00:00]} 6. a3 {[%emt 0:00:05]} Nf6 {[%emt 0:00:01]} 7. Nc3 g6 8. Be2 {[%emt 0:00:16]} Bg7 {[%emt 0:00:02]} 9. Be3 {[%emt 0:00:01]} O-O {[%emt 0:00:01]} 10. O-O d6 11. Rc1 {[%emt 0:00:08]} Nbd7 {[%emt 0:00:02]} 12. b4 {[%emt 0:00:07]} b6 {[%emt 0:00:00]} 13. f3 {[%emt 0:00:04]} Bb7 {[%emt 0:00:01]} 14. Qd2 {[%emt 0:00:00]} Rfe8 {[%emt 0:00:01]} 15. Rfd1 {[%emt 0:00:03]} Rac8 {[%emt 0:00:01]} 16. Nb3 {[%emt 0:00:06]} Qb8 {[%emt 0:00:01]} 17. Qxd6 {[%emt 0:00:18]} Qa8 {[%emt 0:00:04]} 18. Na4 {[%emt 0:00:17]} Rcd8 {[%emt 0:01:22]} 19. Nxb6 {[%emt 0:00:12]} Nxb6 {[%emt 0:00:01]} 20. Qxb6 {[%emt 0:00:01]} Rxd1+ {[%emt 0:00:08]} 21. Rxd1 {[%emt 0:00:01]} Nxe4 {[%emt 0:00:01]} 22. fxe4 {[%emt 0:00:10]} Bxe4 {[%emt 0:00:01]} 23. Qa7 {[%emt 0:00:45]} Qc6 {[%emt 0:00:52]} 24. Qd7 {[%emt 0:00:06]} Qa8 {[%emt 0:00:05]} 25. Qa7 {[%emt 0:00:04]} Qc6 {[%emt 0:00:01]} 26. Na5 {[%emt 0:00:02]} Qa4 {[%emt 0:00:01]} 27. Qd7 {[%emt 0:00:02]} 1-0

[Event "47th GER-ch Blitz 2020"]
[Site "Magdeburg"]
[Date "2020.08.15"]
[Round "15.12"]
[White "Siebarth, Raiko"]
[Black "Muranyi, Karl-Jasmin"]
[Result "0-1"]
[ECO "B10"]
[WhiteElo "2333"]
[BlackElo "2331"]
[Annotator "RC"]
[PlyCount "107"]
[EventDate "2020.07.28"]
[EventType "tourn"]
[EventCountry "GER"]
[SourceTitle "playchess.com"]
[Source "ChessBase"]
[SourceQuality "1"]
[TimeControl "180+2"]

1. e4 {[%emt 0:00:00]} c6 {[%emt 0:00:00]} 2. Nc3 {[%emt 0:00:01]} d5 3. f4 dxe4 {[%emt 0:00:05]} 4. Nxe4 {[%emt 0:00:01]} Nf6 {[%emt 0:00:00]} 5. Nf2 {[%emt 0:00:01]} g6 {[%emt 0:00:04]} 6. Nf3 {[%emt 0:00:01]} Bg7 {[%emt 0:00:00]} 7. g3 {[%emt 0:00:01]} O-O {[%emt 0:00:02]} 8. Bg2 {[%emt 0:00:01]} Ng4 {[%emt 0:00:01]} 9. O-O {[%emt 0:00:08]} Nxf2 {[%emt 0:00:13]} 10. Rxf2 {[%emt 0:00:02]} Bg4 {[%emt 0:00:07]} 11. c3 {[%emt 0:00:07]} Nd7 {[%emt 0:00:01]} 12. d4 {[%emt 0:00:01]} a5 {[%emt 0:00:07]} 13. Be3 {[%emt 0:00:03]} Nf6 {[%emt 0:00:03]} 14. h3 {[%emt 0:00:06]} Nd5 {[%emt 0:00:07]} 15. Qe1 {[%emt 0:00:10]} Nxe3 {[%emt 0:00:08]} 16. Qxe3 {[%emt 0:00:01]} Be6 {[%emt 0:00:11]} 17. Ne5 {[%emt 0:00:30]} Bd5 {[%emt 0:00:04]} 18. Bf1 {[%emt 0:00:01]} b5 {[%emt 0:00:07]} 19. f5 {[%emt 0:00:05]} e6 {[%emt 0:00:14]} 20. fxg6 {[%emt 0:00:12]} fxg6 {[%emt 0:00:15]} 21. Rxf8+ {[%emt 0:00:12]} Qxf8 {[%emt 0:00:04]} 22. Bg2 {[%emt 0:00:00]} Qd6 {[%emt 0:00:08]} 23. Nd3 {[%emt 0:00:20]} Bxg2 {[%emt 0:00:17]} 24. Kxg2 {[%emt 0:00:01]} Qd5+ {[%emt 0:00:02]} 25. Qf3 {[%emt 0:00:04]} Rf8 {[%emt 0:00:20]} 26. Qxd5 {[%emt 0:00:01]} exd5 {[%emt 0:00:02]} 27. Re1 {[%emt 0:00:01]} Kf7 {[%emt 0:00:05]} 28. Nc5 {[%emt 0:00:28]} Re8 {[%emt 0:00:08]} 29. Rf1+ {[%emt 0:00:13]} Kg8 {[%emt 0:00:05]} 30. Rf2 {[%emt 0:00:01]} b4 {[%emt 0:00:05]} 31. Nb7 {[%emt 0:00:07]} a4 {[%emt 0:00:08]} 32. a3 {[%emt 0:00:16]} bxa3 33. bxa3 Bf8 {[%emt 0:00:18]} 34. Na5 {[%emt 0:00:02]} Rc8 {[%emt 0:00:04]} 35. Rb2 {[%emt 0:00:06]} Bxa3 36. Ra2 Bd6 {[%emt 0:00:11]} 37. Rxa4 {[%emt 0:00:02]} Ra8 {[%emt 0:00:07]} 38. Ra1 {[%emt 0:00:00]} c5 {[%emt 0:00:06]} 39. Nb3 {[%emt 0:00:07]} Rxa1 {[%emt 0:00:01]} 40. Nxa1 {[%emt 0:00:01]} c4 {[%emt 0:00:01]} 41. Nc2 {[%emt 0:00:00]} Kf7 {[%emt 0:00:00]} 42. Kf3 {[%emt 0:00:01]} Ke6 {[%emt 0:00:01]} 43. Ne3 {[%emt 0:00:04]} Ba3 {[%emt 0:00:01]} 44. Ke2 {[%emt 0:00:02]} Bb2 {[%emt 0:00:01]} 45. Kd2 {[%emt 0:00:01]} Ba3 {[%emt 0:00:01]} 46. Ng2 {[%emt 0:00:02]} Bd6 {[%emt 0:00:01]} 47. g4 {[%emt 0:00:01]} h5 {[%emt 0:00:03]} 48. Ke2 {[%emt 0:00:03]} Kf6 {[%emt 0:00:01]} 49. Kf3 {[%emt 0:00:01]} Ke6 {[%emt 0:00:01]} 50. Ne3 {[%emt 0:00:09]} hxg4+ {[%emt 0:00:03]} 51. Kxg4 {[%emt 0:00:02]} Be7 {[%emt 0:00:02]} 52. Ng2 {[%emt 0:00:02]} g5 {[%emt 0:00:02]} 53. Ne3 {[%emt 0:00:02]} Bf6 {[%emt 0:00:03]} 54. Kf3 {[%emt 0:00:06]} 0-1

[Event "47th GER-ch Blitz 2020"]
[Site "Magdeburg"]
[Date "2020.08.15"]
[Round "15.13"]
[White "Hess, Max"]
[Black "Krause, Benedict"]
[Result "0-1"]
[ECO "A05"]
[WhiteElo "2378"]
[BlackElo "2425"]
[Annotator "RC"]
[PlyCount "78"]
[EventDate "2020.07.28"]
[EventType "tourn"]
[EventCountry "GER"]
[SourceTitle "playchess.com"]
[Source "ChessBase"]
[SourceQuality "1"]
[TimeControl "180+2"]

1. Nf3 {[%emt 0:00:00]} Nf6 {[%emt 0:00:00]} 2. g3 {[%emt 0:00:00]} g6 {[%emt 0:00:00]} 3. Bg2 {[%emt 0:00:01]} Bg7 {[%emt 0:00:00]} 4. O-O {[%emt 0:00:01]} O-O {[%emt 0:00:01]} 5. d4 {[%emt 0:00:01]} d5 {[%emt 0:00:01]} 6. Nbd2 {[%emt 0:00:06]} Bf5 {[%emt 0:00:09]} 7. c3 {[%emt 0:00:04]} Qc8 {[%emt 0:00:04]} 8. Re1 {[%emt 0:00:08]} c5 {[%emt 0:00:28]} 9. dxc5 {[%emt 0:00:12]} Qxc5 {[%emt 0:00:01]} 10. Nb3 {[%emt 0:00:01]} Qd6 {[%emt 0:00:46]} 11. Bf4 {[%emt 0:00:02]} Qd8 {[%emt 0:00:00]} 12. Nbd4 {[%emt 0:00:20]} Be4 {[%emt 0:00:09]} 13. Qb3 {[%emt 0:00:03]} Qc8 {[%emt 0:00:18]} 14. Bf1 {[%emt 0:00:42]} Bxf3 {[%emt 0:00:08]} 15. exf3 {[%emt 0:00:10]} e6 {[%emt 0:00:09]} 16. Nb5 {[%emt 0:00:07]} Ne8 {[%emt 0:00:15]} 17. Bd6 {[%emt 0:00:30]} Nxd6 {[%emt 0:00:01]} 18. Nxd6 {[%emt 0:00:01]} Qc7 {[%emt 0:00:06]} 19. Qxb7 {[%emt 0:00:09]} Qxd6 {[%emt 0:00:16]} 20. Qxa8 {[%emt 0:00:02]} Qb6 {[%emt 0:00:12]} 21. a4 {[%emt 0:00:37]} Nc6 {[%emt 0:00:02]} 22. a5 {[%emt 0:00:01]} Qc7 {[%emt 0:00:02]} 23. Qxf8+ Kxf8 {[%emt 0:00:06]} 24. f4 {[%emt 0:00:10]} Nxa5 {[%emt 0:00:13]} 25. Ra4 {[%emt 0:00:01]} Nc6 {[%emt 0:00:02]} 26. Rea1 {[%emt 0:00:01]} Bf6 {[%emt 0:00:11]} 27. Bb5 {[%emt 0:00:02]} Qb6 {[%emt 0:00:03]} 28. Bxc6 {[%emt 0:00:04]} Qxc6 {[%emt 0:00:01]} 29. Rxa7 {[%emt 0:00:01]} d4 {[%emt 0:00:02]} 30. R1a6 {[%emt 0:00:02]} Qf3 {[%emt 0:00:02]} 31. Rc7 {[%emt 0:00:09]} d3 {[%emt 0:00:03]} 32. Rd6 {[%emt 0:00:03]} Qe2 {[%emt 0:00:04]} 33. Rcd7 {[%emt 0:00:04]} Qxb2 {[%emt 0:00:02]} 34. Rxd3 {[%emt 0:00:01]} Bxc3 {[%emt 0:00:02]} 35. h4 {[%emt 0:00:02]} Ba5 {[%emt 0:00:02]} 36. Kg2 {[%emt 0:00:02]} Bb6 {[%emt 0:00:01]} 37. Rd2 {[%emt 0:00:00]} Qb5 {[%emt 0:00:01]} 38. R7d6 {[%emt 0:00:03]} Bc7 {[%emt 0:00:03]} 39. Rd7 {[%emt 0:00:00]} Qc6+ {[%emt 0:00:01]} 0-1

[Event "47th GER-ch Blitz 2020"]
[Site "Magdeburg"]
[Date "2020.08.15"]
[Round "15.15"]
[White "Berger, Steve"]
[Black "Schoewel, Matthias"]
[Result "1-0"]
[ECO "C66"]
[WhiteElo "2408"]
[BlackElo "2218"]
[Annotator "RC"]
[PlyCount "41"]
[EventDate "2020.07.28"]
[EventType "tourn"]
[EventCountry "GER"]
[SourceTitle "playchess.com"]
[Source "ChessBase"]
[SourceQuality "1"]
[TimeControl "180+2"]

1. e4 {[%emt 0:00:00]} e5 {[%emt 0:00:00]} 2. Nf3 {[%emt 0:00:00]} Nc6 {[%emt 0:00:01]} 3. Bb5 {[%emt 0:00:02]} d6 {[%emt 0:00:01]} 4. O-O {[%emt 0:00:07]} Nf6 {[%emt 0:00:02]} 5. Re1 {[%emt 0:00:04]} Be7 {[%emt 0:00:01]} 6. c3 {[%emt 0:00:04]} O-O {[%emt 0:00:05]} 7. h3 {[%emt 0:00:06]} Bd7 {[%emt 0:00:09]} 8. d4 {[%emt 0:00:02]} exd4 {[%emt 0:00:01]} 9. cxd4 {[%emt 0:00:01]} d5 {[%emt 0:00:04]} 10. e5 {[%emt 0:00:22]} Ne4 {[%emt 0:00:01]} 11. Bd3 {[%emt 0:00:11]} f5 {[%emt 0:00:14]} 12. exf6 {[%emt 0:00:02]} Bxf6 {[%emt 0:00:09]} 13. Nc3 {[%emt 0:00:12]} Nxc3 {[%emt 0:00:28]} 14. bxc3 {[%emt 0:00:01]} Qc8 {[%emt 0:00:16]} 15. Ba3 {[%emt 0:00:28]} Re8 {[%emt 0:00:05]} 16. Qd2 {[%emt 0:00:08]} Be6 {[%emt 0:00:11]} 17. Qf4 {[%emt 0:00:12]} h6 {[%emt 0:00:23]} 18. Re3 {[%emt 0:00:05]} Qd7 {[%emt 0:00:04]} 19. Rae1 {[%emt 0:00:04]} Qf7 {[%emt 0:00:16]} 20. Qg3 {[%emt 0:00:04]} Qd7 {[%emt 0:00:13]} 21. Qg6 1-0

[Event "47th GER-ch Blitz 2020"]
[Site "Magdeburg"]
[Date "2020.08.15"]
[Round "16.4"]
[White "Muranyi, Karl-Jasmin"]
[Black "Hess, Max"]
[Result "1-0"]
[ECO "A45"]
[WhiteElo "2331"]
[BlackElo "2378"]
[Annotator "RC"]
[PlyCount "69"]
[EventDate "2020.07.28"]
[EventType "tourn"]
[EventCountry "GER"]
[SourceTitle "playchess.com"]
[Source "ChessBase"]
[SourceQuality "1"]
[TimeControl "180+2"]

1. d4 {[%emt 0:00:00]} Nf6 {[%emt 0:00:00]} 2. c3 {[%emt 0:00:00]} g6 {[%emt 0:00:01]} 3. Bf4 {[%emt 0:00:01]} Bg7 {[%emt 0:00:01]} 4. h3 {[%emt 0:00:01]} O-O {[%emt 0:00:02]} 5. Nf3 d6 6. Nbd2 {[%emt 0:00:05]} c5 {[%emt 0:00:03]} 7. e3 {[%emt 0:00:00]} b6 {[%emt 0:00:02]} 8. Be2 {[%emt 0:00:02]} Bb7 {[%emt 0:00:00]} 9. O-O {[%emt 0:00:02]} Nbd7 {[%emt 0:00:01]} 10. Bh2 {[%emt 0:00:01]} Rc8 {[%emt 0:00:08]} 11. a4 {[%emt 0:00:02]} a6 {[%emt 0:00:01]} 12. Bd3 {[%emt 0:00:08]} Rc7 {[%emt 0:00:16]} 13. Qe2 {[%emt 0:00:02]} Qa8 {[%emt 0:00:01]} 14. e4 {[%emt 0:00:10]} cxd4 {[%emt 0:00:07]} 15. cxd4 {[%emt 0:00:01]} Ne8 {[%emt 0:00:55]} 16. e5 {[%emt 0:00:09]} dxe5 {[%emt 0:00:11]} 17. dxe5 {[%emt 0:00:10]} e6 {[%emt 0:00:06]} 18. Rfc1 {[%emt 0:00:14]} Nc5 {[%emt 0:00:03]} 19. b4 {[%emt 0:00:14]} Nxd3 {[%emt 0:00:02]} 20. Qxd3 {[%emt 0:00:01]} Qc8 {[%emt 0:00:15]} 21. Rxc7 {[%emt 0:00:19]} Nxc7 {[%emt 0:00:01]} 22. Ne4 {[%emt 0:00:06]} Nd5 {[%emt 0:00:05]} 23. Nd6 {[%emt 0:00:05]} Qc6 {[%emt 0:00:02]} 24. b5 {[%emt 0:00:06]} axb5 {[%emt 0:00:04]} 25. axb5 {[%emt 0:00:01]} Qd7 {[%emt 0:00:09]} 26. Ra7 {[%emt 0:00:07]} Ra8 {[%emt 0:00:02]} 27. Qa3 {[%emt 0:00:12]} Rxa7 {[%emt 0:00:28]} 28. Qxa7 {[%emt 0:00:02]} Qc7 {[%emt 0:00:01]} 29. Bg3 {[%emt 0:00:10]} Qc1+ {[%emt 0:00:27]} 30. Kh2 {[%emt 0:00:01]} Bc8 {[%emt 0:00:02]} 31. Qb8 {[%emt 0:00:08]} Ne7 {[%emt 0:00:08]} 32. Qxb6 {[%emt 0:00:07]} Bf8 {[%emt 0:00:10]} 33. Qd8 {[%emt 0:00:07]} Qc5 {[%emt 0:00:09]} 34. Qe8 {[%emt 0:00:06]} Kg7 {[%emt 0:00:01]} 35. Qxf7+ {[%emt 0:00:02]} 1-0

[Event "47th GER-ch Blitz 2020"]
[Site "Magdeburg"]
[Date "2020.08.15"]
[Round "19.10"]
[White "Siebarth, Raiko"]
[Black "Voege, Tobias"]
[Result "1/2-1/2"]
[ECO "B38"]
[WhiteElo "2333"]
[BlackElo "2326"]
[Annotator "RC"]
[PlyCount "125"]
[EventDate "2020.07.28"]
[EventType "tourn"]
[EventCountry "GER"]
[SourceTitle "playchess.com"]
[Source "ChessBase"]
[SourceQuality "1"]
[TimeControl "180+2"]

1. e4 {[%emt 0:00:00]} c5 {[%emt 0:00:00]} 2. Nf3 {[%emt 0:00:01]} Nc6 {[%emt 0:00:00]} 3. d4 {[%emt 0:00:01]} cxd4 {[%emt 0:00:01]} 4. Nxd4 {[%emt 0:00:00]} g6 {[%emt 0:00:01]} 5. c4 {[%emt 0:00:04]} Bg7 {[%emt 0:00:00]} 6. Be3 {[%emt 0:00:07]} Nf6 {[%emt 0:00:01]} 7. Nc3 {[%emt 0:00:01]} O-O {[%emt 0:00:02]} 8. Be2 {[%emt 0:00:01]} d6 {[%emt 0:00:01]} 9. O-O {[%emt 0:00:02]} Nxd4 {[%emt 0:00:01]} 10. Bxd4 {[%emt 0:00:02]} a5 {[%emt 0:00:01]} 11. a3 {[%emt 0:00:04]} Bd7 {[%emt 0:00:23]} 12. c5 {[%emt 0:00:01]} dxc5 {[%emt 0:00:20]} 13. Bxc5 {[%emt 0:00:01]} Bc6 {[%emt 0:00:06]} 14. f3 {[%emt 0:00:02]} Nd7 {[%emt 0:00:07]} 15. Be3 {[%emt 0:00:04]} e6 {[%emt 0:00:07]} 16. Rc1 {[%emt 0:00:06]} Qe7 {[%emt 0:00:07]} 17. Qe1 {[%emt 0:00:01]} Rfc8 {[%emt 0:00:07]} 18. Qf2 {[%emt 0:00:04]} a4 {[%emt 0:00:24]} 19. Rfd1 {[%emt 0:00:04]} Rd8 {[%emt 0:00:43]} 20. Rd2 {[%emt 0:00:11]} Nf6 {[%emt 0:00:13]} 21. Rcd1 {[%emt 0:00:12]} Rxd2 {[%emt 0:00:02]} 22. Rxd2 {[%emt 0:00:01]} Rd8 {[%emt 0:00:01]} 23. Bd1 {[%emt 0:00:01]} b5 {[%emt 0:00:13]} 24. Bb6 {[%emt 0:00:58]} Rxd2 {[%emt 0:00:06]} 25. Qxd2 {[%emt 0:00:01]} Nd7 {[%emt 0:00:04]} 26. Bd4 {[%emt 0:00:01]} Bxd4+ {[%emt 0:00:16]} 27. Qxd4 {[%emt 0:00:00]} e5 {[%emt 0:00:01]} 28. Qa7 {[%emt 0:00:07]} Qd6 {[%emt 0:00:03]} 29. Qe3 {[%emt 0:00:06]} b4 {[%emt 0:00:08]} 30. axb4 {[%emt 0:00:01]} Qxb4 {[%emt 0:00:01]} 31. Qd2 {[%emt 0:00:03]} a3 {[%emt 0:00:07]} 32. bxa3 Qxa3 {[%emt 0:00:01]} 33. Nd5 {[%emt 0:00:04]} Qc5+ {[%emt 0:00:02]} 34. Ne3 {[%emt 0:00:02]} Nb6 {[%emt 0:00:02]} 35. Bb3 {[%emt 0:00:05]} Kg7 {[%emt 0:00:02]} 36. Kf2 {[%emt 0:00:01]} Nd7 {[%emt 0:00:03]} 37. Kg3 {[%emt 0:00:02]} Nf6 {[%emt 0:00:01]} 38. h3 {[%emt 0:00:09]} Nh5+ {[%emt 0:00:05]} 39. Kh2 {[%emt 0:00:02]} Nf4 {[%emt 0:00:01]} 40. Ng4 {[%emt 0:00:03]} h5 {[%emt 0:00:02]} 41. Nf2 {[%emt 0:00:06]} Qd4 {[%emt 0:00:01]} 42. Qa2 {[%emt 0:00:07]} Be8 {[%emt 0:00:04]} 43. Qc2 {[%emt 0:00:09]} h4 {[%emt 0:00:01]} 44. Ng4 {[%emt 0:00:04]} Nh5 {[%emt 0:00:03]} 45. Qf2 {[%emt 0:00:03]} Qxf2 {[%emt 0:00:03]} 46. Nxf2 {[%emt 0:00:01]} f6 {[%emt 0:00:01]} 47. Kg1 {[%emt 0:00:04]} Bc6 {[%emt 0:00:02]} 48. Nd3 {[%emt 0:00:01]} Kf8 {[%emt 0:00:01]} 49. Kf2 {[%emt 0:00:00]} Ke7 {[%emt 0:00:01]} 50. Ke3 {[%emt 0:00:02]} Bb5 {[%emt 0:00:01]} 51. Bc2 {[%emt 0:00:11]} Kd6 {[%emt 0:00:00]} 52. Ne1 {[%emt 0:00:02]} Nf4 {[%emt 0:00:03]} 53. Bb3 {[%emt 0:00:07]} g5 {[%emt 0:00:02]} 54. Bc2 {[%emt 0:00:09]} Kc5 {[%emt 0:00:01]} 55. Bd3 {[%emt 0:00:02]} Bxd3 56. Nxd3+ Nxd3 {[%emt 0:00:11]} 57. Kxd3 {[%emt 0:00:01]} Kb4 {[%emt 0:00:01]} 58. Kd2 {[%emt 0:00:02]} Kb3 {[%emt 0:00:03]} 59. Kd3 {[%emt 0:00:00]} Kb4 {[%emt 0:00:00]} 60. Kd2 {[%emt 0:00:01]} Kc4 61. Kc2 Kd4 62. Kd2 Kc4 {[%emt 0:00:04]} 63. Kc2 {[%emt 0:00:01]} 1/2-1/2